bitfinex-derivatives/quotes_SOLF0:USTF0_20240906
["timestamp","ask_amount","ask_price","bid_price","bid_amount"]
[1725630234757,43.78,132.23,132.1,43.78]
[1725630234962,43.78,132.18,132.09,0.05744968]
[1725630235161,43.78,132.18,132.07,43.78]
[1725630235564,3.7844,132.14,132.08,3.7859]
[1725630235761,3.7844,132.14,132.07,43.78]
[1725630236169,3.7844,132.14,132.11,0.05259153]
[1725630236470,3.785,132.12,132.11,0.05259153]
[1725630236661,43.78,132.15,132.05,43.78]
[1725630236862,1.3442,132.14,132.02,43.78]
[1725630237062,0.05519971,132.13,132.07,43.78]
[1725630237769,43.78,132.18,132.07,43.78]
[1725630237969,3.7846,132.14,132.09,3.7857]
[1725630238164,0.05425941,132.11,132.07,43.78]
[1725630238659,0.05425941,132.11,132.0,5.1165669]
[1725630238864,0.05425941,132.11,132.02,43.78]
[1725630239271,3.86736125,132.19,132.02,43.78]
[1725630239272,3.74857235,132.12,132.02,43.78]
[1725630239466,43.78,132.15,132.04,43.78]
[1725630239667,43.78,132.13,132.02,43.78]
[1725630239863,0.0523745,132.08,132.0,43.78]
[1725630240375,43.78,132.07,131.95,43.78]
[1725630240673,1.3932,132.1,131.99,43.78]
[1725630240864,1.3932,132.1,132.01,43.78]
[1725630241265,3.7881,132.01,131.97,3.789]
[1725630241461,3.7881,132.01,131.93,47.62287368]
[1725630241666,0.04863518,132.02,131.93,47.62287368]
[1725630241873,3.7878,132.02,131.96,3.7893]
[1725630242072,3.87538749,132.04,131.93,43.78]
[1725630242375,3.7876,132.03,131.94,3.83182253]
[1725630242679,0.05434004,131.99,131.98,43.78]
[1725630242864,47.56114229,132.13,132.06,3.7865]
[1725630243065,3.78114229,132.13,132.03,47.50650897]
[1725630243268,43.78,132.15,132.03,47.50650897]
[1725630243475,3.7853,132.11,132.03,43.78]
[1725630243775,43.78,132.17,132.06,43.78]
[1725630243966,3.7851,132.12,132.06,47.5666]
[1725630244166,48.78484059,132.18,132.06,43.78]
[1725630244363,0.05609693,132.08,132.06,0.05444831]
[1725630245166,3.7855,132.11,132.03,43.78]
[1725630245466,43.78,132.16,132.06,43.78]
[1725630245673,3.7851,132.12,132.07,3.7864]
[1725630245974,43.78,132.12,132.01,43.78]
[1725630246371,43.78,132.09,131.97,43.78]
[1725630246572,43.78,132.07,131.97,43.78]
[1725630246975,43.78,132.12,132.02,43.78]
[1725630247365,3.7863,132.08,132.03,3.7873]
[1725630247566,43.78,132.14,132.02,43.78]
[1725630247794,43.78,132.14,132.05,3.7867]
[1725630247972,43.78,132.16,132.06,0.05583902]
[1725630248465,43.78,132.14,132.06,0.05583902]
[1725630248668,0.05142572,132.11,132.04,43.78]
[1725630248971,0.05142572,132.11,132.06,3.7866]
[1725630249172,0.05142572,132.11,132.04,43.78]
[1725630249471,3.7864,132.07,132.06,0.05117608]
[1725630249677,0.05142572,132.11,132.06,0.05117608]
[1725630249871,0.05142572,132.11,132.08,3.786]
[1725630250066,3.785,132.12,132.07,43.78]
[1725630250277,48.78484059,132.18,132.07,43.78]
[1725630250479,3.784,132.16,132.12,3.7847]
[1725630250686,1.2805,132.18,132.1,43.78]
[1725630250973,3.86218841,132.26,132.1,3.7855]
[1725630250974,0.05621032,132.11,132.1,3.7855]
[1725630251175,2.6825,132.29,132.1,3.73134909]
[1725630251378,0.73074135,132.28,132.11,1.3148]
[1725630251568,3.83736408,132.28,132.11,5.17450296]
[1725630251773,2.6825,132.29,132.13,0.05077877]
[1725630251975,6.47632221,132.29,132.13,0.05077877]
[1725630252181,0.73102371,132.28,132.13,0.05077877]
[1725630252481,2.6825,132.29,132.19,43.78]
[1725630252673,3.78246346,132.28,132.19,43.78]
[1725630252874,43.78,132.28,132.17,43.78]
[1725630253078,3.7827,132.2,132.19,0.05323732]
[1725630253381,43.78,132.28,132.19,0.05323732]
[1725630253576,6.39188884,132.29,132.2,3.7825]
[1725630253577,3.7815,132.25,132.2,3.7825]
[1725630253874,6.39188884,132.29,132.18,43.78]
[1725630254076,3.7807,132.27,132.23,3.7818]
[1725630254279,43.78,132.32,132.2,43.78]
[1725630254280,5.08012695,132.33,132.24,43.78]
[1725630254480,1.3114,132.33,132.24,43.78]
[1725630254672,1.3114,132.33,132.24,47.5613]
[1725630254869,43.78,132.37,132.24,43.78]
[1725630255083,43.78,132.34,132.24,43.78]
[1725630255278,3.7795,132.31,132.24,43.78]
[1725630255583,2.6983,132.38,132.28,43.78]
[1725630256387,2.6983,132.38,132.21,1.4011]
[1725630256388,43.78,132.37,132.21,1.4011]
[1725630256585,43.78,132.34,132.23,43.78]
[1725630256879,7.59167087,132.33,132.32,0.05072232]
[1725630257072,7.59167087,132.33,132.21,1.4011]
[1725630257073,43.78,132.34,132.21,45.1811]
[1725630257277,43.78,132.3,132.14,1.4079]
[1725630257574,43.78,132.3,132.14,43.78]
[1725630257575,43.78,132.25,132.14,43.78]
[1725630257784,43.78,132.23,132.12,43.78]
[1725630257974,3.7829,132.2,132.12,43.78]
[1725630258176,47.52772459,132.23,132.12,43.78]
[1725630258572,2.7765,132.26,132.16,0.05175568]
[1725630258883,46.5565,132.26,132.16,0.05175568]
[1725630259084,43.78,132.24,132.16,0.05175568]
[1725630259380,43.78,132.22,132.09,43.78]
[1725630259780,43.78,132.24,132.11,43.78]
[1725630260369,43.78,132.24,132.14,3.7843]
[1725630260680,43.78,132.22,132.11,43.78]
[1725630260880,6.6297357,132.26,132.16,0.05136199]
[1725630261588,2.7765,132.26,132.18,43.78]
[1725630261780,3.7814,132.25,132.2,3.7825]
[1725630262080,2.7765,132.26,132.2,3.83643529]
[1725630262276,2.7765,132.26,132.2,0.05393529]
[1725630262277,46.5565,132.26,132.2,0.05393529]
[1725630262482,46.5565,132.26,132.07,1.3286]
[1725630262483,43.78,132.22,132.11,43.78]
[1725630262791,43.78,132.22,132.07,1.3286]
[1725630262792,43.78,132.22,132.09,43.78]
[1725630262977,3.7842,132.15,132.11,3.7852]
[1725630263276,3.7842,132.15,132.07,1.3286]
[1725630263277,43.78,132.2,132.07,43.78]
[1725630263482,43.78,132.2,132.09,43.78]
[1725630263677,3.76456805,132.19,132.09,43.78]
[1725630263882,1.3542,132.23,132.14,43.78]
[1725630264089,0.05483315,132.15,132.14,43.78]
[1725630264381,1.3542,132.23,132.14,43.78]
[1725630264584,46.5565,132.26,132.17,0.0488915]
[1725630265375,1.397,132.29,132.23,3.7818]
[1725630265675,50.74728207,132.28,132.2,30.1586022]
[1725630265984,3.7811,132.26,132.22,3.7818]
[1725630266182,38.56924335,132.25,132.2,0.05827981]
[1725630266377,38.66652624,132.24,132.17,43.78]
[1725630266678,12.08319207,132.25,132.19,43.78]
[1725630266679,3.7815,132.25,132.19,43.78]
[1725630266882,43.78,132.31,132.19,43.78]
[1725630267083,0.05113587,132.21,132.19,3.73372692]
[1725630267380,43.78,132.32,132.22,43.78]
[1725630267678,3.7807,132.27,132.23,3.7816]
[1725630267884,43.78,132.32,132.22,43.78]
[1725630268186,43.78,132.32,132.2,43.78]
[1725630268384,43.78,132.32,132.21,2.93761032]
[1725630268574,43.78,132.32,132.2,43.78]
[1725630268773,43.78,132.29,132.21,43.27677597]
[1725630268979,47.62456603,132.29,132.22,43.27677597]
[1725630269176,47.62456603,132.29,132.23,43.27677597]
[1725630269384,47.62456603,132.29,132.24,43.27677597]
[1725630269580,24.22499817,132.28,132.2,3.7825]
[1725630269786,9.25141364,132.24,132.2,43.78]
[1725630270080,24.22440573,132.23,132.2,43.78]
[1725630270286,20.44146536,132.22,132.2,43.78]
[1725630270582,8.28233004,132.21,132.2,43.78]
[1725630270776,16.19561434,132.21,132.2,47.5627]
[1725630270981,19.97863961,132.21,132.2,47.5627]
[1725630271374,16.51483961,132.21,132.2,47.5627]
[1725630271582,9.25212075,132.26,132.22,3.782]
[1725630271777,42.40942495,132.25,132.2,43.78]
[1725630272078,42.40942495,132.24,132.2,43.78]
[1725630272384,26.47888001,132.23,132.21,0.04986891]
[1725630272591,42.40727957,132.23,132.21,0.04986891]
[1725630272883,15.92839956,132.22,132.13,43.78]
[1725630273074,86.18727957,132.21,132.11,43.78]
[1725630273279,42.40727957,132.2,132.11,43.78]
[1725630273481,3.7835,132.18,132.11,43.78]
[1725630273788,2.7142,132.22,132.13,43.78]
[1725630274178,2.7142,132.22,132.08,3.7366623]
[1725630274179,2.7142,132.22,132.17,3.7835]
[1725630274384,271.78,132.32,132.2,43.78]
[1725630274574,2.7142,132.31,132.22,43.78]
[1725630274780,43.78,132.3,132.18,43.78]
[1725630274990,0.05181005,132.21,132.18,43.78]
[1725630275684,3.72342246,132.27,132.18,43.78]
[1725630275887,43.78,132.3,132.18,43.78]
[1725630276194,0.04830971,132.21,132.18,43.78]
[1725630276492,0.04830971,132.21,132.19,3.783]
[1725630276784,2.7142,132.31,132.1,43.78]
[1725630276785,43.78,132.23,132.1,43.78]
[1725630277086,43.78,132.27,132.1,43.78]
[1725630277087,3.7835,132.17,132.1,43.78]
[1725630277388,0.05290965,132.21,132.1,43.78]
[1725630277685,0.05290965,132.21,132.12,43.78]
[1725630277886,47.52252447,132.23,132.12,43.78]
[1725630278188,1.4028,132.26,132.14,43.78]
[1725630278480,0.04817707,132.18,132.14,43.78]
[1725630279082,3.87721298,132.25,132.14,43.78]
[1725630279277,43.78,132.25,132.14,43.78]
[1725630279489,43.78,132.23,132.1,43.78]
[1725630279681,0.0500863,132.17,132.1,43.78]
[1725630279877,3.7844,132.14,132.06,43.78]
[1725630280186,3.83541944,132.16,132.06,43.78]
[1725630280386,3.7852,132.12,132.07,3.7862]
[1725630280678,50.29665206,132.16,132.06,43.78]
[1725630280877,3.83813436,132.11,132.06,47.5666]
[1725630281083,3.83813436,132.11,132.01,3.78366127]
[1725630281084,0.05283436,132.11,132.04,43.78]
[1725630281275,0.05283436,132.11,131.93,43.78]
[1725630281276,0.05283436,132.11,132.02,43.78]
[1725630281476,43.83283436,132.11,132.0,43.78]
[1725630281683,43.78,132.11,132.0,43.78]
[1725630282087,43.78,132.11,132.0,47.5682]
[1725630282289,0.05825386,132.07,132.0,43.78]
[1725630282782,0.05825386,132.07,131.98,43.78]
[1725630283085,43.78,132.05,131.94,43.78]
[1725630283480,2.636,132.06,131.92,3.78674227]
[1725630283481,3.7894,131.97,131.92,3.78674227]
[1725630283680,43.78,132.05,131.93,43.78]
[1725630284082,0.05157736,132.01,131.93,43.78]
[1725630284292,3.7884,132.0,131.95,3.7898]
[1725630284476,0.05157736,132.01,131.93,43.78]
[1725630284676,2.636,132.06,131.98,43.78]
[1725630284889,2.636,132.06,132.0,43.78]
[1725630285085,43.78,132.14,132.01,43.78]
[1725630285287,2.6276,132.1,132.0,3.7883]
[1725630285584,43.78,132.09,132.0,3.7883]
[1725630285886,3.7872,132.05,132.0,3.7883]
[1725630286390,3.7872,132.05,132.01,3.7881]
[1725630286786,3.70054296,132.08,131.98,43.78]
[1725630286991,43.78,132.05,131.93,43.78]
[1725630287185,3.7885,132.0,131.93,43.78]
[1725630287382,3.75862307,132.04,131.93,43.78]
[1725630287583,43.78,132.03,131.91,43.78]
[1725630287891,43.78,132.03,131.93,3.7904]
[1725630288282,43.78,132.01,131.89,43.78]
[1725630288488,0.05761802,131.99,131.89,43.78]
[1725630288694,3.7895,131.97,131.89,43.78]
[1725630288993,0.05761802,131.99,131.89,43.78]
[1725630289191,2.6916,132.0,131.89,43.78]
[1725630289783,0.05342559,131.95,131.91,43.78]
[1725630290184,0.05342559,131.95,131.93,43.78]
[1725630290587,0.05342559,131.95,131.94,3.7901]
[1725630290886,0.00202559,131.95,131.94,3.7901]
[1725630291099,43.78,132.07,131.97,3.7892]
[1725630291283,2.7278,132.08,131.98,43.78]
[1725630291595,3.7869,132.06,131.98,47.65689435]
[1725630291790,2.7278,132.08,132.0,3.7883]
[1725630292189,3.7871,132.05,132.0,3.7883]
[1725630292585,2.7278,132.08,132.01,3.7879]
[1725630292803,2.7278,132.08,131.98,43.78]
[1725630293094,2.7278,132.08,132.01,0.05081381]
[1725630293391,3.7872,132.05,132.01,0.05081381]
[1725630293586,1.4052,132.08,132.01,0.05081381]
[1725630293785,3.7875,132.04,132.01,0.05081381]
[1725630294203,3.7865,132.07,132.01,0.05081381]
[1725630294497,1.3226,132.1,132.02,43.78]
[1725630295184,1.2984,132.15,132.04,43.78]
[1725630295388,2.6644,132.15,132.04,43.78]
[1725630295591,2.6644,132.15,132.06,43.78]
[1725630295792,3.7847,132.13,132.08,3.7861]
[1725630296600,3.7847,132.13,132.09,0.05769963]
[1725630296796,2.6644,132.15,132.09,0.05769963]
[1725630297002,43.78,132.14,132.09,0.05769963]
[1725630297191,43.78,132.14,132.02,43.78]
[1725630297394,3.7861,132.09,132.04,3.7872]
[1725630297598,0.04835038,132.12,132.04,3.7872]
[1725630297900,43.78,132.12,132.0,43.78]
[1725630298095,2.6644,132.15,131.93,43.78]
[1725630298096,43.78,132.09,131.97,43.78]
[1725630298293,3.7873,132.04,132.0,3.7884]
[1725630298602,3.74251034,132.08,131.98,3.76107325]
[1725630298796,0.04798649,132.04,131.99,43.78]
[1725630298992,0.04798649,132.04,132.01,3.7879]
[1725630299804,0.04798649,132.04,132.02,3.7878]
[1725630300102,0.04798649,132.04,132.01,43.78]
[1725630300407,0.04798649,132.04,131.99,43.78]
[1725630300701,0.04798649,132.04,132.01,3.788]
[1725630300901,0.04798649,132.04,131.93,43.78]
[1725630301400,0.04798649,132.04,131.95,43.78]
[1725630301700,43.78,132.06,131.97,3.7891]
[1725630301898,3.69752079,132.1,131.98,47.52440713]
[1725630302102,0.05239459,132.01,132.0,43.78]
[1725630302298,1.381,132.14,132.0,87.56]
[1725630302497,1.381,132.14,132.05,43.78]
[1725630302700,3.7854,132.11,132.06,3.7866]
[1725630302999,45.161,132.14,132.03,43.78]
[1725630303199,45.161,132.14,132.03,47.5675]
[1725630303391,45.161,132.14,131.98,3.82738883]
[1725630303600,45.161,132.14,131.95,7.5792]
[1725630303601,43.78,132.12,132.01,43.78]
[1725630303794,3.7862,132.08,132.01,43.78]
[1725630304001,3.7862,132.08,132.03,3.7875]
[1725630304201,1.381,132.14,132.05,43.78]
[1725630304399,2.6644,132.15,132.05,43.78]
[1725630304700,43.78,132.11,132.0,43.78]
[1725630304902,43.78,132.11,132.01,3.7879]
[1725630304903,3.80160859,132.1,132.01,3.7879]
[1725630305099,43.78,132.11,132.0,43.78]
[1725630305299,43.78,132.14,132.04,43.78]
[1725630305898,43.78,132.14,132.02,43.78]
[1725630306300,43.78,132.14,132.05,43.78]
[1725630306495,43.78,132.14,132.08,0.05024489]
[1725630306904,43.78,132.09,131.98,43.78]
[1725630307099,47.47742898,132.09,131.98,47.59070062]
[1725630307405,47.47742898,132.09,131.96,43.78]
[1725630307406,43.78,132.07,131.96,43.78]
[1725630307709,43.78,132.09,131.98,43.78]
[1725630307909,43.78,132.14,132.02,43.78]
[1725630308302,3.7858,132.09,132.02,43.78]
[1725630308502,2.6644,132.15,131.98,3.80160859]
[1725630308503,43.78,132.12,132.0,43.78]
[1725630308701,0.0568759,132.05,132.0,43.78]
[1725630309006,2.6644,132.15,132.04,43.78]
[1725630309200,2.6644,132.15,132.07,43.78]
[1725630309909,228.0,132.21,132.13,43.78]
[1725630310214,2.6506,132.25,132.15,43.78]
[1725630310705,2.6506,132.25,132.07,3.81457623]
[1725630310706,2.6506,132.25,132.17,43.78]
[1725630310908,2.6506,132.25,132.1,0.05294823]
[1725630311210,2.6506,132.25,132.17,43.78]
[1725630311403,2.6506,132.25,132.0,3.87669425]
[1725630311404,2.6506,132.25,132.18,3.7832]
[1725630311600,43.78,132.28,132.18,43.78]
[1725630311911,3.7812,132.25,132.18,43.78]
[1725630312103,2.6506,132.32,132.22,43.78]
[1725630312302,43.78,132.3,132.17,43.78]
[1725630312504,43.78,132.28,132.17,43.78]
[1725630312810,43.78,132.28,132.17,47.63708179]
[1725630313003,2.6506,132.32,132.2,43.78]
[1725630313209,2.6506,132.32,132.22,43.8310497]
[1725630313702,3.7803,132.29,132.22,43.78]
[1725630314104,3.7804,132.28,132.22,43.78]
[1725630314409,3.7804,132.28,132.19,3.86881234]
[1725630314410,43.78,132.29,132.26,0.04836841]
[1725630314613,43.78,132.27,132.15,47.564]
[1725630314807,43.78,132.27,132.15,47.65201044]
[1725630314808,0.05306618,132.26,132.15,47.65201044]
[1725630315111,0.05306618,132.26,132.18,43.78]
[1725630315412,2.6506,132.32,132.2,43.78]
[1725630315809,2.6506,132.32,132.18,43.78]
[1725630316015,43.78,132.31,132.18,43.78]
[1725630316317,2.6506,132.32,132.22,43.78]
[1725630316704,0.04975169,132.26,132.13,47.48553744]
[1725630316922,0.04975169,132.26,132.22,3.7819]
[1725630317209,0.04975169,132.26,132.2,43.78]
[1725630317415,47.59374489,132.31,132.2,43.78]
[1725630317708,47.59374489,132.31,132.18,43.78]
[1725630318015,0.04788604,132.24,132.16,43.78]
[1725630318217,3.8092923,132.23,132.14,43.78]
[1725630318412,43.78,132.22,132.11,43.78]
[1725630318711,45.1798,132.22,132.11,43.78]
[1725630319025,45.1798,132.22,132.17,0.04880116]
[1725630319210,0.05186198,132.18,132.17,0.04880116]
[1725630319913,3.7832,132.18,132.17,0.04880116]
[1725630320308,43.78,132.19,132.09,43.78]
[1725630320515,43.78,132.17,132.06,43.78]
[1725630320710,43.78,132.14,132.02,43.78]
[1725630320911,43.78,132.12,132.0,43.78]
[1725630321210,43.78,132.12,131.98,3.76919449]
[1725630321211,43.78,132.1,131.98,43.78]
[1725630321514,3.788,132.02,131.97,3.7892]
[1725630321707,43.78,132.06,131.96,43.78]
[1725630321906,1.4129,132.11,131.91,43.78]
[1725630321907,43.78,132.01,131.91,43.78]
[1725630322112,43.78,132.01,131.89,43.78]
[1725630322113,43.78,131.99,131.89,43.78]
[1725630322314,43.78,131.99,131.81,0.1017]
[1725630322315,43.78,131.99,131.86,43.78]
[1725630322617,43.78,131.99,131.88,43.78]
[1725630322821,43.78,131.99,131.86,43.78]
[1725630323207,2.7568,132.0,131.88,43.78]
[1725630323716,0.04906947,131.94,131.88,43.78]
[1725630324215,0.04906947,131.94,131.91,43.78]
[1725630324517,0.04906947,131.94,131.88,43.78]
[1725630324717,0.04906947,131.94,131.86,43.78]
[1725630325017,43.78,131.99,131.88,43.78]
[1725630325208,2.7568,132.0,131.9,43.78]
[1725630325408,2.7568,132.0,131.92,43.78]
[1725630325615,3.86467755,131.99,131.9,43.78]
[1725630325817,2.7568,132.0,131.96,3.7895]
[1725630326016,2.7568,132.0,131.9,43.78]
[1725630326414,0.05210606,131.97,131.9,43.78]
[1725630326816,0.05210606,131.97,131.86,47.62951304]
[1725630326817,0.05210606,131.97,131.95,43.78]
[1725630327010,0.05210606,131.97,131.96,47.5695]
[1725630327212,43.78,132.09,131.96,43.78]
[1725630327520,2.6888,132.11,132.04,43.78]
[1725630327714,228.0,132.17,132.06,43.78]
[1725630327715,3.85695067,132.17,132.06,43.78]
[1725630328025,43.78,132.18,132.06,43.78]
[1725630328322,43.78,132.16,132.06,43.78]
[1725630328510,47.5854135,132.16,132.06,43.78]
[1725630328709,0.04988297,132.13,132.1,0.05005787]
[1725630331012,43.78,132.12,132.02,43.78]
[1725630331311,0.04988297,132.13,131.98,43.78]
[1725630331312,43.78,132.09,131.98,43.78]
[1725630331511,3.77025431,132.08,131.98,43.78]
[1725630331916,43.78,132.09,131.98,43.78]
[1725630332115,47.51655414,132.09,131.98,43.78]
[1725630332423,47.53624413,132.09,131.98,43.78]
[1725630332617,0.0482218,132.05,131.98,43.78]
[1725630332818,0.0482218,132.05,131.87,0.1022]
[1725630333011,3.7873,132.04,131.97,47.5692]
[1725630333316,0.0482218,132.05,131.87,0.1022]
[1725630333520,43.78,132.07,131.96,3.7895]
[1725630333521,3.788,132.02,131.96,3.7895]
[1725630333718,3.788,132.02,131.97,43.78]
[1725630334019,43.78,132.07,131.87,0.1022]
[1725630334020,0.05089094,132.01,131.87,0.1022]
[1725630334619,3.7889,131.99,131.94,3.79]
[1725630334821,0.05089094,132.01,131.87,0.1022]
[1725630335313,0.05089094,132.01,131.86,47.62951304]
[1725630335314,43.78,132.02,131.9,43.78]
[1725630335511,43.78,132.04,131.94,43.78]
[1725630335816,0.05007521,131.99,131.92,43.78]
[1725630336014,0.05007521,131.99,131.9,43.78]
[1725630336214,43.78,131.96,131.86,43.78]
[1725630336414,1.3122,131.98,131.83,43.78]
[1725630336625,43.78,131.94,131.83,43.78]
[1725630336930,45.0727,131.95,131.83,43.78]
[1725630337121,0.05513568,131.92,131.83,43.78]
[1725630337315,0.05513568,131.92,131.8,43.78]
[1725630337521,43.78,131.91,131.87,0.05517402]
[1725630337917,3.7918,131.88,131.87,0.05517402]
[1725630338118,47.61201001,131.93,131.87,0.05517402]
[1725630338428,3.7918,131.88,131.87,0.05517402]
[1725630338630,0.05147295,131.9,131.87,0.05517402]
[1725630340518,0.05147295,131.9,131.87,3.84707402]
[1725630340721,0.05147295,131.9,131.87,0.05517402]
[1725630340922,1.3298,131.97,131.88,43.78]
[1725630341127,43.78,132.03,131.92,43.78]
[1725630341333,1.3149,132.04,131.95,43.78]
[1725630341625,43.78,132.01,131.9,43.78]
[1725630341827,47.54725064,132.01,131.88,43.78]
[1725630342026,3.7894,131.97,131.92,3.7906]
[1725630342220,47.54725064,132.01,131.88,43.78]
[1725630342727,3.84716297,131.97,131.93,3.7902]
[1725630342922,0.05766297,131.97,131.88,43.78]
[1725630343625,43.78,132.0,131.88,43.78]
[1725630344025,0.05041363,131.94,131.88,43.78]
[1725630344226,0.05041363,131.94,131.91,43.78]
[1725630344531,1.3149,132.04,131.88,43.78]
[1725630344532,1.3149,132.04,131.93,43.78]
[1725630344736,1.3149,132.04,131.95,43.78]
[1725630345029,5.1022,132.04,131.95,43.78]
[1725630345218,1.3149,132.04,131.93,43.8331829]
[1725630345422,3.7886,132.0,131.94,3.7899]
[1725630345620,3.7886,132.0,131.91,43.78]
[1725630345921,3.7876,132.03,131.93,43.78]
[1725630346231,1.3149,132.04,131.97,0.05040463]
[1725630346425,43.78,132.02,131.97,0.05040463]
[1725630346923,3.7878,132.02,131.97,3.83960463]
[1725630347123,1.3149,132.04,131.97,43.83040463]
[1725630347521,271.78,132.12,131.99,43.78]
[1725630347721,43.78,132.12,131.99,43.78]
[1725630347926,43.78,132.1,132.01,3.788]
[1725630348328,43.78,132.12,131.99,43.78]
[1725630348528,43.78,132.12,132.05,3.7868]
[1725630348937,43.78,132.1,132.04,0.05087636]
[1725630349129,3.787,132.05,132.04,0.05087636]
[1725630349328,43.82986753,132.1,131.97,43.78]
[1725630349533,43.78,132.07,131.95,43.78]
[1725630349831,47.50317304,132.07,131.95,43.78]
[1725630350024,43.78,132.05,132.03,0.05234011]
[1725630350226,43.78,132.05,131.97,3.7892]
[1725630350431,0.04871783,132.02,131.92,43.78]
[1725630350629,3.7884,132.0,131.95,3.7896]
[1725630350833,0.04871783,132.02,131.93,3.70726551]
[1725630351029,43.78,132.03,131.92,43.78]
[1725630351231,43.78,132.03,131.91,43.78]
[1725630351527,1.3818,132.04,131.93,43.78]
[1725630351836,1.3818,132.04,131.95,43.78]
[1725630352037,1.3818,132.04,131.96,3.86111911]
[1725630352435,1.3435,132.06,131.97,43.78]
[1725630352738,0.04886626,132.01,131.97,47.54600272]
[1725630352933,43.78,132.1,132.03,3.7875]
[1725630353133,43.78,132.1,132.0,0.05205659]
[1725630353437,3.7863,132.08,132.04,3.7872]
[1725630353740,43.78,132.1,131.99,43.78]
[1725630353931,3.7866,132.07,131.99,43.78]
[1725630354438,3.7866,132.07,132.03,0.0528015]
[1725630354734,43.78,132.1,132.03,0.0528015]
[1725630354940,45.1695,132.12,132.03,0.0528015]
[1725630355636,45.1695,132.12,132.05,3.7869]
[1725630355835,45.1695,132.12,131.97,3.76600272]
[1725630355836,45.1695,132.12,132.02,43.78]
[1725630356043,45.1695,132.12,132.06,0.05802813]
[1725630356337,3.7857,132.1,132.06,3.84452813]
[1725630356543,1.3895,132.12,132.06,0.05802813]
[1725630357241,45.1695,132.12,132.06,0.05802813]
[1725630358631,43.78,132.07,131.98,43.78]
[1725630359133,0.05094294,132.1,132.0,43.78]
[1725630359331,1.3895,132.12,132.04,3.7871]
[1725630359738,3.7864,132.08,132.04,3.7871]
[1725630359941,3.7864,132.08,132.02,43.78]
[1725630359942,3.7864,132.08,132.05,3.787]
[1725630360136,0.05435919,132.09,132.04,3.84042035]
[1725630360345,0.05435919,132.09,132.05,43.78]
[1725630360741,1.2917,132.13,132.03,47.50869215]
[1725630360940,1.2917,132.13,132.01,43.78]
[1725630361141,43.78,132.12,132.01,43.78]
[1725630361341,0.05415944,132.08,132.0,3.87071953]
[1725630361544,0.05415944,132.08,131.93,51.3606]
[1725630361545,0.05415944,132.08,131.98,47.61284556]
[1725630361739,0.05415944,132.08,131.98,43.78]
[1725630361938,43.78,132.04,131.94,43.78]
[1725630362459,43.78,132.0,131.89,43.78]
[1725630362741,43.78,132.0,131.87,43.78]
[1725630362942,43.78,131.95,131.82,43.78]
[1725630363147,43.78,131.93,131.82,43.78]
[1725630363446,3.7909,131.92,131.82,43.78]
[1725630363646,43.78,131.95,131.85,3.7927]
[1725630363946,43.78,131.95,131.82,43.78]
[1725630363947,3.7909,131.92,131.83,3.72078344]
[1725630364145,43.78,131.93,131.82,43.78]
[1725630364346,0.05164051,131.88,131.78,43.78]
[1725630364544,0.05164051,131.88,131.69,3.87677936]